Cogmind - Beta 9.2 @@@ ROGUE MODE // 2019.11.19 @ 18:52:26 Player: Cassie Rose Result: Destroyed by G-47 Trooper with Particle Gun Performance ------------- Evolutions (3) 1500 Regions Visited (10) 2000 Robots Destroyed (119) 595 Value Destroyed (3664) 3664 Prototype IDs (23) 460 Alien Tech Used (0) 0 Bonus (1123) 1123 TOTAL SCORE: 9342 Bonus ------- High Alert Combat Kills 124 Follower Combat Kills 49 Entered Garrisons 200 Used RIF Installer 500 Aligned with FarCom 300 Friendly Fire -50 Cogmind --------- Core Integrity 0/700 Matter 19/300 Energy 282/290 System Corruption 11% Temperature Cool (21) Movement Treading (153) Location -7/Factory Parts ------- > --- POWER (1) -------- Improved Deuterium Engine > --- PROPULSION (4) --- Armored Treads Advanced Treads Advanced Treads > --- UTILITY (6) ------ High-capacity Storage Unit Advanced Signal Interpreter Hacking Suite Relay Coupler [Swarmer] (37) Relay Coupler [Sentry] (25) > --- WEAPON (2) ------- Power Maul > --- INVENTORY (12) --- Advanced Signal Interpreter Trap Extractor Shock Rifle Plasma Cannon Heavy Assault Rifle Datajack Improved Datajack Remote Datajack Remote Datajack Peak State ------------ > --- POWER ------------ Improved Deuterium Engine > --- PROPULSION ------- Flying Fortress v7 > --- UTILITY ---------- High-capacity Storage Unit Advanced Signal Interpreter Relay Coupler [Swarmer] Relay Coupler [Swarmer] Relay Coupler [Sentry] > --- WEAPON ----------- Arc Projector Katana > --- INVENTORY -------- Advanced Treads Advanced Treads Advanced Treads Advanced Signal Interpreter Trap Extractor Plasma Cannon Heavy Assault Rifle Datajack Improved Datajack [Rating: 59] Favorites ----------- Power Improved Ion Engine Engine Improved Ion Engine Power Core Light Nuclear Core Propulsion Improved Treads Treads Improved Treads Wheel Wheel Flight Unit Flying Fortress v7 Utility Hacking Suite Device Trap Extractor Storage High-capacity Storage Unit Processor Advanced Signal Interpreter Hackware Hacking Suite Protection Light Armor Plating Weapon Mini Grenade Launcher Energy Gun EM Shotgun Energy Cannon Particle Cannon Ballistic Gun Assault Rifle Launcher Mini Grenade Launcher Special Weapon Remote Datajack Impact Weapon Power Maul Slashing Weapon Katana Special Melee Weapon Improved Datajack Build | -11 -10 -10 -9 -9 -9 -8 -8 -7 -7 -7 ------- Run | Scr Mat Min Mat Min Exi Min Mat Fac Gar Fac Slots Evolved 6 | . . . 2 . . . 2 2 . . Power . | . . . . . . . . . . . Propulsion 2 | . . . . . . . 2 . . . Utility 4 | . . . 2 . . . . 2 . . Weapon . | . . . . . . . . . . . Parts Attached 98 | 5 12 6 26 3 2 . 7 7 10 20 Power 15 | 1 2 2 4 1 . . 1 1 2 1 Engine 12 | 1 2 2 3 1 . . . 1 1 1 Core 3 | . . . 1 . . . 1 . 1 . Reactor . | . . . . . . . . . . . Propulsion 20 | 2 3 . 9 . . . 1 . . 5 Treads 14 | . 3 . 6 . . . . . . 5 Leg . | . . . . . . . . . . . Wheel 5 | 2 . . 3 . . . . . . . Hover . | . . . . . . . . . . . Flight 1 | . . . . . . . 1 . . . Utility 25 | 1 2 1 7 1 1 . 3 2 1 6 Device 5 | . . . 2 . . . 1 2 . . Storage 6 | 1 2 . 1 . 1 . . . . 1 Processor 1 | . . . . . . . . . . 1 Hackware 6 | . . . 1 . . . . . 1 4 Protection 7 | . . 1 3 1 . . 2 . . . Artifact . | . . . . . . . . . . . Weapon 38 | 1 5 3 6 1 1 . 2 4 7 8 Energy Gun 8 | 1 2 1 . . 1 . 1 . 1 1 Energy Cannon 4 | . 1 . . . . . . . 2 1 Ballistic Gun 11 | . 2 2 4 1 . . 1 . 1 . Ballistic Cannon . | . . . . . . . . . . . Launcher 5 | . . . 2 . . . . . 2 1 Special Weapon 3 | . . . . . . . . 1 . 2 Impact Weapon 1 | . . . . . . . . . . 1 Slashing Weapon 2 | . . . . . . . . 1 1 . Piercing Weapon . | . . . . . . . . . . . Special Melee Weapon 4 | . . . . . . . . 2 . 2 Unidentified Prototypes 1 | . . . 1 . . . . . . . Parts Lost 39 | . 5 5 6 . . 1 2 2 11 7 Power 6 | . 1 1 1 . . . . . 2 1 Propulsion 6 | . 2 1 . . . 1 . . . 2 Utility 12 | . . 1 2 . . . 2 2 4 1 Weapon 15 | . 2 2 3 . . . . . 5 3 Highest Loss Streak 9 | . 2 3 1 . . 1 1 1 9 5 Average Slot Usage (%) 84 | . 81 91 93 100 100 99 71 64 61 76 Engine 8 | . 13 14 8 11 11 11 7 3 6 2 Treads 15 | . 10 26 12 22 22 21 . . . 22 Wheel 2 | . 16 . 8 . . . . . . . Flight 1 | . . . . . . . 9 7 7 1 Device 6 | . . . 11 11 11 11 9 11 12 . Storage 10 | . 14 14 11 11 11 11 9 7 7 7 Processor 1 | . . . . . . . . . . 6 Hackware 9 | . . . 9 11 11 11 9 7 10 21 Protection 5 | . . 7 8 11 11 11 8 6 . . Energy Gun 2 | . 10 . . . 7 11 5 . . . Energy Cannon 2 | . 6 11 . . . . . . . 2 Ballistic Gun 6 | . 8 15 16 10 3 . 3 . . . Launcher 3 | . . . 4 11 11 11 9 . . . Slashing Weapon 1 | . . . . . . . . 6 6 1 Naked Turns . | . . . . . . . . . . . Heaviest Build 53 | 11 27 30 37 30 48 48 48 52 53 51 Greatest Support 88 | 20 40 40 46 46 46 46 72 72 72 88 Greatest Overweight (x) 17 | . 2 1 2 . 1 2 . . 17 12 Average Overweight (x) . | . . . . . . 1 . . . . Largest Inventory Capacity 20 | 6 14 10 10 10 12 12 12 12 12 20 Average Capacity 10 | 5 8 10 10 10 10 12 12 12 12 12 Most Carried 12 | 6 10 10 10 10 10 11 11 12 12 12 Average Carried 9 | 4 7 8 9 9 9 10 8 11 10 9 Final Capacity 12 | 6 10 10 10 10 12 12 12 12 12 12 Final Carried 12 | 6 9 6 8 10 10 10 10 12 8 9 Class Distribution -------------------- 65% | Mutant 16% | Scavenger-Mutant 9% | Ninja 4% | Scavenger-Scout 4% | Scavenger-Ninja Dominant Class ---------------- Mutant | -10/Materials Mutant | -10/Mines Mutant | -9/Materials Scavenger-Mutant | -9/Mines Mutant | -9/Exiles Mutant | -8/Mines Mutant | -8/Materials Scavenger-Scout | -7/Factory Ninja | -7/Garrison Mutant | -7/Factory Resources | -11 -10 -10 -9 -9 -9 -8 -8 -7 -7 -7 ----------- Run | Scr Mat Min Mat Min Exi Min Mat Fac Gar Fac Matter Collected 2543 | 250 182 100 1289 80 . 20 188 80 112 242 Remotely . | . . . . . . . . . . . Salvage Created 3940 | 156 626 129 1643 49 . 45 375 226 376 315 Parts 227 | 6 46 13 99 2 . 3 22 17 8 11 Haulers Intercepted 8 | . 2 . 4 . . . . 1 . 1 Recyclers Shooed 3 | . . 1 2 . . . . . . . Parts Field Recycled . | . . . . . . . . . . . Retrieved Matter . | . . . . . . . . . . . Parts Self-Destructed . | . . . . . . . . . . . Prevented . | . . . . . . . . . . . Kills | -11 -10 -10 -9 -9 -9 -8 -8 -7 -7 -7 ------- Run | Scr Mat Min Mat Min Exi Min Mat Fac Gar Fac Combat Hostiles Destroyed 90 | . 14 5 40 2 . 1 7 5 12 4 Melee 9 | . . . . . . . . 5 4 . Guns 51 | . 9 3 31 . . 1 6 . 1 . Cannons 6 | . 2 2 . . . . . . 1 1 AOE 23 | . 3 . 9 2 . . 1 . 6 2 Classes Destroyed 14 | 2 5 . 4 . . . 1 1 1 . Worker 3 | . . . 2 . . . . . . 1 Builder 4 | . 1 . . . . . 1 . . 2 Tunneler 4 | 3 1 . . . . . . . . . Hauler 8 | . 2 . 4 . . . . 1 . 1 Recycler 2 | 1 . . 1 . . . . . . . Operator 6 | . 4 . 2 . . . . . . . Watcher 2 | . . . 1 . . . . . . 1 Swarmer 28 | . 6 3 13 . . . . 3 3 . Grunt 41 | . 8 2 15 2 . 1 4 1 6 2 Brawler 1 | . . . . . . . . . 1 . Duelist 5 | . . . 3 . . . 1 . 1 . Sentry 11 | . . . 9 . . . 1 . 1 . Hunter 1 | . . . . . . . 1 . . . Programmer 3 | . . . . . . . . 1 . 2 Best Kill Streak 9 | 3 9 3 9 2 . 1 4 3 7 3 Combat Bots Only 7 | . 5 3 6 2 . 1 3 3 7 2 Max Kills in Single Turn 4 | 1 4 2 4 1 . 1 2 1 1 1 Gunslinging 1 | . . 1 . . . . . . . . Exploded 4 | . 1 . 4 1 . . 1 . 1 1 Melee 1 | . . . . . . . . 1 1 . Uniques/NPCs Destroyed . | . . . . . . . . . . . Combat | -11 -10 -10 -9 -9 -9 -8 -8 -7 -7 -7 -------- Run | Scr Mat Min Mat Min Exi Min Mat Fac Gar Fac Damage Taken 7511 | . 546 744 1993 306 . 150 708 246 1486 1332 Core 1424 | . 112 93 330 29 . 17 130 83 228 402 Absorbed by Shields . | . . . . . . . . . . . Core Remaining (%) 50 | 100 . 18 . . . 6 76 . . . Volleys Fired 337 | 10 52 25 117 12 . 8 56 3 31 23 Largest 2 | 1 2 2 2 2 . 1 1 1 2 1 Hottest 125 | 40 88 88 60 60 . 45 45 30 125 80 Shots Fired 518 | 10 88 50 223 14 . 8 56 3 43 23 Gun 407 | 10 70 36 201 10 . 8 56 . 11 5 Cannon 52 | . 18 14 . . . . . . 17 3 Launcher 46 | . . . 22 4 . . . . 15 5 Special 13 | . . . . . . . . 3 . 10 Kinetic 310 | . 24 31 201 10 . . 41 . 3 . Thermal 57 | . 18 19 . . . . . . 17 3 Explosive 46 | . . . 22 4 . . . . 15 5 Electromagnetic 92 | 10 46 . . . . 8 15 . 8 5 Robot Hit Streak 18 | 3 5 8 18 9 . 15 16 4 5 7 Robot Miss Streak 7 | 1 7 3 5 1 . 1 3 . 3 3 Penetration Max . | . . . . . . . . . . . Secondary Targets 10 | . 2 2 6 . . . . . . . Max Gunslinging Chain 1 | . 1 1 1 . . . . . . . Shots Hit Robots 381 | 7 51 26 150 12 . 8 37 22 29 39 Core Hits 202 | 4 32 7 83 5 . 7 20 7 25 12 Critical Hits 3 | . . . 3 . . . . . . . Critical Kills 1 | . . . 1 . . . . . . . Critical Parts Destroyed 1 | . . . 1 . . . . . . . Melee Attacks 63 | . . . . . . . . 25 13 25 Impact 20 | . . . . . . . . . . 20 Slashing 35 | . . . . . . . . 22 13 . Piercing . | . . . . . . . . . . . Sneak Attacks 15 | . . . . . . . . 6 . 9 Combat Hostiles . | . . . . . . . . . . . Follow-up Attacks . | . . . . . . . . . . . Damage Inflicted 9218 | 126 1121 419 2893 280 . 138 601 712 1426 1502 Guns 3988 | 126 573 254 2213 69 . 138 522 . 84 9 Cannons 513 | . 188 165 . . . . . . 129 31 Explosions 2901 | . 360 . 678 211 . . 79 . 972 601 Melee 1814 | . . . . . . . . 712 241 861 Ramming 2 | . . . 2 . . . . . . . Kinetic 3092 | . 193 202 2213 69 . . 398 . 17 . Thermal 772 | . 316 217 . . . . 79 . 129 31 Explosive 2694 | . 232 . 678 211 . . . . 972 601 Electromagnetic 844 | 126 380 . . . . 138 124 . 67 9 Impact 861 | . . . . . . . . . . 861 Slashing 953 | . . . . . . . . 712 241 . Piercing . | . . . . . . . . . . . Highest Corruption 11 | . . . . . . . . . . 11 Average Corruption 5 | . . . . . . . . . . 5 Corruption Purged . | . . . . . . . . . . . Effects 39 | . . . . . . . . . . 39 Message Errors 10 | . . . . . . . . . . 10 Matter Fused 12 | . . . . . . . . . . 12 Heat Flow Errors 5 | . . . . . . . . . . 5 Energy Discharges 5 | . . . . . . . . . . 5 Data Loss (minor) 2 | . . . . . . . . . . 2 Data Loss (major) 4 | . . . . . . . . . . 4 Targeting Errors 1 | . . . . . . . . . . 1 Overload Shots . | . . . . . . . . . . . Overflow Damage 482 | . 27 1 . . . . . 73 16 365 Projectiles 15 | . 8 1 . . . . . . 6 . Explosions 64 | . 19 . . . . . . . 10 35 Melee 403 | . . . . . . . . 73 . 330 Knockbacks 6 | . . . . . . . . . . 6 Impact 6 | . . . . . . . . . . 6 Kinetic . | . . . . . . . . . . . Secondary . | . . . . . . . . . . . Self-Inflicted Damage 412 | . . . 217 41 . . 28 . 58 68 Shots 16 | . . . 10 1 . . 1 . 2 2 Rammed 1 | . . . 1 . . . . . . . Targets Rammed 1 | . . . 1 . . . . . . . Kicked . | . . . . . . . . . . . Crushed . | . . . . . . . . . . . Highest Temperature 538 | 20 173 271 117 18 . 87 102 39 538 263 Average Temperature 65 | 20 44 86 18 8 . 53 29 21 206 76 Received Heat Transfer 2331 | . 246 192 627 93 . 45 252 36 630 210 Effects 8 | . . 1 . . . . . . 7 . Shutdowns 1 | . . . . . . . . . 1 . Energy Bleed 4 | . . 1 . . . . . . 3 . Short Circuit 2 | . . . . . . . . . 2 . Damage (major) 1 | . . . . . . . . . 1 . Siege Activations . | . . . . . . . . . . . Robots Corrupted . | . . . . . . . . . . . Combat Hostiles . | . . . . . . . . . . . Parts Fried 10 | . 2 . . . . . . . . 8 Impact Corruptions 13 | . . . . . . . . . . 13 Robots Melted . | . . . . . . . . . . . Combat Hostiles . | . . . . . . . . . . . Parts Melted . | . . . . . . . . . . . Heat Transferred 1177 | . 433 444 . . . . . . 250 50 Parts Sabotaged . | . . . . . . . . . . . Parts Stolen . | . . . . . . . . . . . Parts Stripped . | . . . . . . . . . . . Power Chain Reactions 4 | . 3 . . . . . 1 . . . Missiles Intercepted . | . . . . . . . . . . . Alert | -11 -10 -10 -9 -9 -9 -8 -8 -7 -7 -7 ------- Run | Scr Mat Min Mat Min Exi Min Mat Fac Gar Fac Peak Influence 643 | 20 366 198 643 321 . 41 426 200 318 184 Average Influence 129 | 6 208 45 343 169 . 22 138 120 82 54 Maximum Alert Level 2 | . 1 . 2 1 . . 2 1 1 . Low Security (%) 74 | 100 36 100 24 60 . 100 77 73 82 100 Level 1 18 | . 63 . 27 39 . . 7 26 17 . Level 2 7 | . . . 47 . . . 15 . . . Level 3 . | . . . . . . . . . . . Level 4 . | . . . . . . . . . . . Level 5 . | . . . . . . . . . . . High Security . | . . . . . . . . . . . Max Security . | . . . . . . . . . . . Squads Dispatched 18 | . 3 . 5 . . . 3 1 . 6 Investigation 5 | . 1 . 1 . . . 1 . . 2 Extermination 3 | . . . . . . . . 1 . 2 Reinforcement 6 | . 2 . 3 . . . . . . 1 Assault 2 | . . . 1 . . . 1 . . . Garrison 2 | . . . . . . . 1 . . 1 Intercept . | . . . . . . . . . . . Construction Impeded 1 | . . . . . . . . . . 1 Haulers Reinforced . | . . . . . . . . . . . Stealth | -11 -10 -10 -9 -9 -9 -8 -8 -7 -7 -7 --------- Run | Scr Mat Min Mat Min Exi Min Mat Fac Gar Fac Distress Signals 5 | . 1 . 3 . . . . 1 . . Communications Jammed . | . . . . . . . . . . . Distress Signals . | . . . . . . . . . . . Times Spotted 145 | . 25 10 53 3 . 8 12 8 15 11 Peak Tracking Total 8 | . 4 3 6 2 . 4 5 4 8 6 Tactical Retreats 10 | . 1 . 2 . . 1 1 2 3 . Traps | -11 -10 -10 -9 -9 -9 -8 -8 -7 -7 -7 ------- Run | Scr Mat Min Mat Min Exi Min Mat Fac Gar Fac Traps Triggered 8 | . . . 1 . . . . 3 1 3 Indirectly . | . . . . . . . . . . . Trap Hack Attempts . | . . . . . . . . . . . Triggered . | . . . . . . . . . . . Disarmed . | . . . . . . . . . . . Reprogrammed . | . . . . . . . . . . . Reused . | . . . . . . . . . . . Traps Extracted . | . . . . . . . . . . . Installed . | . . . . . . . . . . . Triggered . | . . . . . . . . . . . Machines | -11 -10 -10 -9 -9 -9 -8 -8 -7 -7 -7 ---------- Run | Scr Mat Min Mat Min Exi Min Mat Fac Gar Fac Machines Disabled 12 | . 4 . 3 . . . 1 . 1 3 Max in Single Turn 2 | . 1 . 1 . . . 1 . 1 2 Garrison Access 1 | . . . . . . . 1 . . . Garrison Relay 1 | . . . . . . . . . 1 . Machines Sabotaged . | . . . . . . . . . . . Garrisons Compromised . | . . . . . . . . . . . Overloaded Fab Kills . | . . . . . . . . . . . Fab Network Shutdowns . | . . . . . . . . . . . Hacking | -11 -10 -10 -9 -9 -9 -8 -8 -7 -7 -7 --------- Run | Scr Mat Min Mat Min Exi Min Mat Fac Gar Fac Machines Accessed 26 | . 6 1 6 . 1 . 4 3 . 5 Terminals 18 | . 6 1 5 . . . 3 1 . 2 Fabricators 2 | . . . . . . . . 1 . 1 Repair Stations 2 | . . . 1 . . . . . . 1 Recycling Units . | . . . . . . . . . . . Scanalyzers . | . . . . . . . . . . . Garrison Access 3 | . . . . . . . 1 1 . 1 Total Hacks 75 | . 16 3 20 . 1 . 13 8 . 14 Successful 43 | . 9 1 13 . 1 . 8 3 . 8 Failed 32 | . 7 2 7 . . . 5 5 . 6 Catastrophic 1 | . . . 1 . . . . . . . Database Lockouts . | . . . . . . . . . . . Manual 60 | . 16 3 17 . 1 . 10 6 . 7 Terminals 59 | . 16 3 17 . . . 11 5 . 7 Fabricators 4 | . . . . . . . . 1 . 3 Repair Stations 5 | . . . 3 . . . . . . 2 Recycling Units . | . . . . . . . . . . . Scanalyzers . | . . . . . . . . . . . Garrison Access 6 | . . . . . . . 2 2 . 2 Terminal Hacks 10 | . 1 . 4 . 1 . 3 1 . . Branch Access Points 4 | . 1 . 1 . . . 1 1 . . Garrison Index 1 | . . . . . . . 1 . . . Unreport Threat 1 | . . . 1 . . . . . . . Zone Layout 3 | . . . 2 . . . 1 . . . EX-Prototype ID Bank 1 | . . . . . 1 . . . . . Fabricator Hacks 2 | . . . . . . . . . . 2 Network Status 1 | . . . . . . . . . . 1 Build 1 | . . . . . . . . . . 1 Repair Station Hacks 5 | . . . 3 . . . . . . 2 Scan Component 3 | . . . 2 . . . . . . 1 Repair 2 | . . . 1 . . . . . . 1 Recycling Unit Hacks . | . . . . . . . . . . . Scanalyzer . | . . . . . . . . . . . Garrison Access Hacks 5 | . . . . . . . 2 1 . 2 Unlock Access 3 | . . . . . . . 1 1 . 1 Coupler Status 2 | . . . . . . . 1 . . 1 Unauthorized Hacks 57 | . 22 2 15 . . . 7 2 . 9 Terminals 21 | . 8 1 6 . . . 3 1 . 2 Track 1 | . 1 . . . . . . . . . Assimilate 3 | . 1 . 2 . . . . . . . Botnet 17 | . 6 1 4 . . . 3 1 . 2 Fabricators . | . . . . . . . . . . . Repair Stations . | . . . . . . . . . . . Recycling Units . | . . . . . . . . . . . Scanalyzers . | . . . . . . . . . . . Garrison Access . | . . . . . . . . . . . Data Cores Recovered 2 | . 2 . . . . . . . . . Used 1 | . 1 . . . . . . . . . Hacking Detections 24 | . 6 1 5 . . . 4 3 . 5 Full Trace Events 8 | . 2 1 2 . . . 1 . . 2 Feedback Events 1 | . . . . . . . . . . 1 Corruption 1 | . . . . . . . . . . 1 Feedback Blocked . | . . . . . . . . . . . Robot Schematics Acquired . | . . . . . . . . . . . Robots Built . | . . . . . . . . . . . Matter 153 | . . . . . . . . . . 153 Time 40 | . . . . . . . . . . 40 Total Robot Build Rating . | . . . . . . . . . . . Part Schematics Acquired . | . . . . . . . . . . . Parts Built . | . . . . . . . . . . . Matter . | . . . . . . . . . . . Time . | . . . . . . . . . . . Total Part Build Rating . | . . . . . . . . . . . Parts Repaired 2 | . . . 1 . . . . . . 1 Time 76 | . . . 32 . . . . . . 44 Parts Recycled . | . . . . . . . . . . . Recycled Matter . | . . . . . . . . . . . Retrieved Matter . | . . . . . . . . . . . Retrieved Components . | . . . . . . . . . . . Parts Scanalyzed . | . . . . . . . . . . . Part Schematics Acquired . | . . . . . . . . . . . Parts Damaged . | . . . . . . . . . . . Bothacking | -11 -10 -10 -9 -9 -9 -8 -8 -7 -7 -7 ------------ Run | Scr Mat Min Mat Min Exi Min Mat Fac Gar Fac Used RIF Installer 1 | . . . . . . . . . 1 . Robots Hacked 11 | . . . . . . . . 3 . 8 Non-combat 10 | . . . . . . . . 3 . 7 Combat 1 | . . . . . . . . . . 1 Robot Hacks Applied 16 | . . . . . . . . 6 . 10 parse_system 4 | . . . . . . . . 1 . 3 no_distress 10 | . . . . . . . . 4 . 6 find_chute 1 | . . . . . . . . 1 . . ignore_repairs 1 | . . . . . . . . . . 1 Relay Couplers Released 4 | . . . . . . . 1 . 3 . Machine Destruction 4 | . . . . . . . 1 . 3 . Attached 4 | . . . . . . . . . 1 3 Robots Rewired 1 | . . . . . . 1 . . . . Allies Hacked . | . . . . . . . . . . . Hacks Repelled . | . . . . . . . . . . . Allies | -11 -10 -10 -9 -9 -9 -8 -8 -7 -7 -7 -------- Run | Scr Mat Min Mat Min Exi Min Mat Fac Gar Fac Total Allies 7 | . . 2 1 3 . 1 . . . . Largest Group 3 | . . 2 1 3 3 3 . . . . Highest-Rated Group 42 | . . 42 11 40 40 40 . . . . Highest-Rated Ally 31 | . . 31 11 16 16 29 . . . . Total Orders . | . . . . . . . . . . . Ally Attacks 31 | . . 19 . . . 12 . . . . Total Damage 320 | . . 167 . . . 153 . . . . Kills 3 | . . 2 . . . 1 . . . . Allies Corrupted . | . . . . . . . . . . . Allies Melted . | . . . . . . . . . . . Intel | -11 -10 -10 -9 -9 -9 -8 -8 -7 -7 -7 ------- Run | Scr Mat Min Mat Min Exi Min Mat Fac Gar Fac Robot Analysis Total . | . . . . . . . . . . . Derelict Logs Recovered 2 | . . 1 . 1 . . . . . . Drone Launches . | . . . . . . . . . . . Drone Recoveries . | . . . . . . . . . . . Exploration | -11 -10 -10 -9 -9 -9 -8 -8 -7 -7 -7 ------------- Run | Scr Mat Min Mat Min Exi Min Mat Fac Gar Fac Turns Passed 9608 | 85 750 1322 1224 1025 676 681 353 902 938 1652 Spaces Moved 5404 | 62 573 692 555 596 414 350 297 730 290 845 Core 9 | 1 . . . . . . . . 5 3 Treads 2890 | . 36 692 308 596 414 350 . . . 494 Legs . | . . . . . . . . . . . Wheels 845 | 61 537 . 247 . . . . . . . Hover . | . . . . . . . . . . . Flight 1660 | . . . . . . . 297 730 285 348 Fastest Speed 50 | 50 80 160 100 160 160 180 50 50 50 50 Average Speed 116 | 79 93 161 133 160 162 180 50 50 62 107 Slowest Speed 900 | 80 180 180 180 160 180 200 50 50 900 650 Overloaded Moves . | . . . . . . . . . . . Propulsion Burnouts . | . . . . . . . . . . . Robots Hopped 4 | . . . . . . . 4 . . . Cave-ins Triggered . | . . . . . . . . . . . Exploration Rate (%) 54 | 4 88 99 64 94 72 61 34 20 46 17 Regions Visited 10 Branch Regions 4 Pre-discovered Areas 1 | . . 1 . . . . . . . . Known Exits Taken 4 | . 1 . 1 . . 1 . 1 . . Unknown Exits Taken 5 | 1 . 1 . 1 1 . 1 . . . Scrap Searched 4 | . . 2 . 1 . 1 . . . . Spaces Dug . | . . . . . . . . . . . Terrain Destroyed 360 | . 11 . 93 55 . . 3 . 149 49 Melee . | . . . . . . . . . . . Projectile 6 | . . . . . . . . . 6 . AOE 354 | . 11 . 93 55 . . 3 . 143 49 Actions | -11 -10 -10 -9 -9 -9 -8 -8 -7 -7 -7 --------- Run | Scr Mat Min Mat Min Exi Min Mat Fac Gar Fac Total 8127 | 86 702 849 843 655 421 393 439 1229 978 1532 Wait 2099 | . 49 124 107 39 . 32 76 451 629 592 Move 5385 | 61 572 691 554 595 413 349 288 729 288 845 Hop 4 | . . . . . . . 4 . . . Pick Up 86 | 10 11 2 23 4 1 1 6 7 4 17 Fast Attach 5 | 1 2 . 2 . . . . . . . Attach 52 | 4 6 4 10 . . . 3 3 8 14 Detach 4 | . . . 1 . . . 1 1 . 1 Swap 41 | . 4 2 14 3 2 . 4 4 2 6 Drop 36 | . 6 1 14 2 5 1 1 3 . 3 Fire 337 | 10 52 25 117 12 . 8 56 3 31 23 Melee 63 | . . . . . . . . 25 13 25 Ram 1 | . . . 1 . . . . . . . Kick . | . . . . . . . . . . . Crush . | . . . . . . . . . . . Escape Stasis 12 | . . . . . . . . 3 3 6 Rewire 2 | . . . . . . 2 . . . . Trap . | . . . . . . . . . . . Miscellaneous . | . . . . . . . . . . . Route ------- -11/Scrapyard -10/Materials (discovered 4 exits: *Mat x2 / *Min x2) -10/Mines (discovered 2 exits: *Mat x2) -9/Materials (discovered 3 exits: *Mat / *Min x2) -9/Mines (discovered 3 exits: *Mat x2 / *Exi) -9/Exiles (discovered 2 exits: [*Min x2]) -8/Mines -8/Materials (discovered 2 exits: *Fac x2) -7/Factory (discovered 5 exits: Sto x2 / Low x2 / Gar) -7/Garrison -7/Factory (discovered 2 exits: [*Fac] / Gar) History --------- Turn | Location | Event 10 | -11/Scrapyard | Discovered new exit (range 16) 86 | -11/Scrapyard | Entered Materials 206 | -10/Materials | Discovered new exit (range 13) 264 | -10/Materials | Discovered new exit (range 16) 304 | -10/Materials | Build established: Mutant 569 | -10/Materials | Discovered new exit (range 15) 617 | -10/Materials | Identified exit to Mines 654 | -10/Materials | Discovered new exit (range 8) 836 | -10/Materials | Entered Mines 1005 | -10/Mines | Core integrity fell below 50% 1082 | -10/Mines | Discovered new exit (range 8) 1157 | -10/Mines | Discovered new exit (range 7) 2024 | -10/Mines | Lost 3 parts (1n2w) 2089 | -10/Mines | Core integrity fell below 20% 2158 | -10/Mines | Entered Materials 2158 | -9/Materials | Accompanied by 1 ally 2158 | -9/Materials | Evolved 2 slots: Utility x2 2473 | -9/Materials | Discovered new exit (range 7) 2796 | -9/Materials | Identified exit to Mines 2959 | -9/Materials | Core integrity fell below 50% 3025 | -9/Materials | Discovered new exit (range 3) 3096 | -9/Materials | Repaired Imp. Treads 3168 | -9/Materials | Core integrity fell below 20% 3358 | -9/Materials | First assault squad dispatched 3382 | -9/Materials | Entered Mines 3437 | -9/Mines | Joined a pair of Derelicts in attacking an 0b10 outpost 3492 | -9/Mines | Met a Derelict bent on vengeance 3585 | -9/Mines | Assembled infested the area 3727 | -9/Mines | Assisted by bots powering up and referring to "LRC-V3" 3735 | -9/Mines | Build established: Scavenger-Mutant 3783 | -9/Mines | Identified exit to Materials 4080 | -9/Mines | Found a hidden stash of uninstalled traps 4107 | -9/Mines | Received a Rocket Launcher from a helpful Derelict 4125 | -9/Mines | Discovered exit to Materials (range 6) 4398 | -9/Mines | Discovered new exit (range 5) 4407 | -9/Mines | Entered Exiles 4407 | -9/Exiles | Accompanied by 3 allies 4431 | -9/Exiles | Discovered new exit (range 15) 4455 | -9/Exiles | Met 8R-AWN 4483 | -9/Exiles | Met EX-HEX 4550 | -9/Exiles | Met EX-BIN 4572 | -9/Exiles | Aligned with FarCom system 4574 | -9/Exiles | Given EX-Vault access code 4614 | -9/Exiles | Opened EX-Vault 4629 | -9/Exiles | Found Flying Fortress v7 4665 | -9/Exiles | Warned to stay clear of 0b10 Research branches 4713 | -9/Exiles | Met EX-DEC 4915 | -9/Exiles | Build established: Mutant 5057 | -9/Exiles | Discovered new exit (range 14) 5083 | -9/Exiles | Left Exiles lab with Flying Fortress v7 5083 | -9/Exiles | Entered Mines 5083 | -8/Mines | Accompanied by 3 allies 5727 | -8/Mines | Discovered exit to Materials (range 8) 5764 | -8/Mines | Entered Materials 5764 | -8/Materials | Evolved 2 slots: Propulsion x2 5879 | -8/Materials | Discovered new exit (range 15) 5986 | -8/Materials | Discovered new exit (range 6) 5997 | -8/Materials | Garrison activated, responded to threat 6056 | -8/Materials | Identified exit to Garrison 6117 | -8/Materials | Entered Factory 6117 | -7/Factory | Evolved 2 slots: Utility x2 6255 | -7/Factory | Identified exit to Storage 6255 | -7/Factory | Identified exit to Lower Caves 6363 | -7/Factory | Build established: Scavenger-Scout 6837 | -7/Factory | Build established: Scavenger-Ninja 7015 | -7/Factory | Identified exit to Garrison 7019 | -7/Factory | Entered Garrison 7022 | -7/Garrison | Installed Relay Interface Framework 7245 | -7/Garrison | Build established: Ninja 7286 | -7/Garrison | Triggered checkpoint 7785 | -7/Garrison | Triggered checkpoint 7837 | -7/Garrison | Destroyed 7 combat bots 7885 | -7/Garrison | Lost 9 parts (2p4u3w) 7929 | -7/Garrison | Garrison Relay disabled 7948 | -7/Garrison | Discovered new exit (range 14) 7957 | -7/Garrison | Entered Factory 7999 | -7/Factory | Identified exit to Garrison 8115 | -7/Factory | Build established: Mutant 8237 | -7/Factory | Discovered new exit (range 12) 8272 | -7/Factory | Core integrity fell below 50% 8291 | -7/Factory | Repaired Remote Datajack 8317 | -7/Factory | Lost 5 parts (1p1n1u2w) 9583 | -7/Factory | System corruption reached 10% 9595 | -7/Factory | Core integrity fell below 20% 9609 | -7/Factory | Destroyed by G-47 Trooper with Particle Gun Last Messages --------------- 09590_ G-47 Trooper destroyed. 09591_ ALERT: Construction progress impeded, dispatching reinforcements to local area. 09594_ G-47 Trooper destroyed. 09594_ System corrupted: Missile Launcher targeting data glitched. 09594_ Fabricator disabled. 09595_ Y-54 Guardian emerges from the garrison. 09596_ Destroyed Shock Rifle. 09596_ Destroyed Gravmag System. 09596_ U-05 Engineer destroyed. 09601_ The unstable cave ceiling collapses. 09601_ U-05 Engineer lays Concrete. 09604_ Missile Launcher destroyed. 09605_ U-05 Engineer lays Concrete. 09606_ The unstable cave ceiling collapses. 09606_ U-05 Engineer lays Concrete. 09607_ Adv. Treads destroyed. 09607_ U-05 Engineer lays Concrete. 09608_ The unstable cave ceiling collapses. 09609_ U-05 Engineer lays Concrete. Map ----- +----------------------------------------------------+ | < ?????????????????????????????????? | | #####????????????????????????????????????????? | | #????????????????????????????????????????????? | | #????????????????????????????????????????????? | | ##############???????????????????????????????? | | # #???????????????????????????????? | | # #???????????????????????????????? | | # """"""" #???????????????????????????????? | | # """"""" #???????????????????????????????? | | # """"""" #???????????????????????????????? | | # """"""" #?????? ??????????????????????? | | "" # #?????? ??????????????????????? | | "" + """"""" #?????? "?????????????????????? | | "" # """"""" #?????# "?????????????????????? | | # """"""" #?????# "?????????????????????? | | " # """"""" #?????# "?????????????????????? | | " # #?????# ????????????????????? | | " ######+#############[ ""??""????????????????? | | "" "" ???????????????? | | "" """ """???????????????? | | "" ! """ """ ""????????????? | | "" """ """ """ ?????????? | | ?????????? | | #????????? | | a ???????????? | | ##########+#### @ #?????????????????? | | ## = # #?????????????????? | | # # """"" u/ "" ????????????? | | # ! # "" F" # "" ????????????? | | # # "" " [[ +??""?????????????? | | # # p [[ #?????????????????? | | # # [ "??????????????? | | # # g ????????????? | | # # u g g ! ????????????? | | # # Y ????????????? | | # ## % # ######????????????? | | # ## ! * g ???????????????? | | # ## = #??????????????? | | ###+##+######## " " ???????????????? | | #?# #??????# ""G"" ???????????????? | | #?# #??????# ??????????????????? | | #?# #?######## # ##???????????????????? | | #?# #?# # #????????????????????? | | #?# #?# # ?????????????????????? | | ##?# #?#!!! ? ????????????????????????? | | ???# #?#!!! ???????????????????????????? | | ???# #?#!!! # ##??????????????????????????? | | #### ########+## #??????????????????????????? | | #??????????????????????????? | | ################ #??????????????????????????? | +----------------------------------------------------+ Best States ------------- Heat Dissipation 34 Energy Generation 16 Energy Capacity 290 Matter Stores 300 Matter Capacity 300 Sight Range 16 Robot Scan Range 13 Terrain Scan Range 16 Terrain Scan Density 10 Jamming Range 8 Armor Coverage 150 Evasion (%) 60 Recoil Reduction 4 Offensive Hacking 10 Item Schematics ----------------- None Robot Schematics ------------------ None Fabricated ------------ Nothing Alien Tech Used ----------------- None Achievements -------------- A New Friend Challenges ------------ None Game ------ Seed MatterQuantumGuard Manual? 0 Play Time 02:09:03 Cumulative 28.5 hours Start 2019.11.19 @ 14:46:25 End 2019.11.19 @ 18:52:26 Sessions 1 Manual Loads 0 Difficulty Rogue Special Mode None Game No. 35 Rogue 35 Adventurer 0 Explorer 0 Win Type - Total 0 Types 0/0/0/0/0/0/0 Lore% 21 Gallery% 18 Achievement% 19 Wizard Run 0 Options --------- ASCII 0 Keyboard 0 Movement Mouse Keybinds 0 Fullscreen 1 Font 18/X11 Map View 76x50 Tactical HUD 1 Map Filters NONE Filters LOW_CONTRAST(13,24,33) Steam 1 RUN: 0bcea67d-c185-4acb-a7a2-46582845e039